bitfinex/quotes_BTCUSD_20230901
["timestamp","ask_amount","ask_price","bid_price","bid_amount"]
[1693537820681,3.41396899,26077.0,26076.0,0.2102]
[1693537821200,3.41348899,26077.0,26076.0,0.2102]
[1693537821607,3.41354899,26077.0,26076.0,0.2102]
[1693537821809,3.16596552,26077.0,26076.0,0.2102]
[1693537822030,3.43148295,26077.0,26076.0,0.2102]
[1693537822205,3.42752295,26077.0,26076.0,0.2102]
[1693537822363,3.42728295,26077.0,26076.0,0.2102]
[1693537822567,3.42710295,26077.0,26076.0,0.2102]
[1693537823039,3.42794295,26077.0,26076.0,0.2102]
[1693537823384,3.42728295,26077.0,26076.0,0.2102]
[1693537823614,3.42716295,26077.0,26076.0,0.2102]
[1693537823797,3.42710295,26077.0,26076.0,0.2102]
[1693537824149,3.42704295,26077.0,26076.0,0.2102]
[1693537824554,3.42710295,26077.0,26076.0,0.2102]
[1693537825139,3.42716295,26077.0,26076.0,0.2102]
[1693537825312,3.42710295,26077.0,26076.0,0.2102]
[1693537825514,3.42716295,26077.0,26076.0,0.2102]
[1693537825719,3.16836552,26077.0,26076.0,0.2102]
[1693537825930,3.36968015,26077.0,26076.0,0.2102]
[1693537826273,3.36944015,26077.0,26076.0,0.2102]
[1693537826500,3.36956015,26077.0,26076.0,0.2102]
[1693537826697,3.36950015,26077.0,26076.0,0.2102]
[1693537827103,3.36944015,26077.0,26076.0,0.2102]
[1693537827297,3.36962015,26077.0,26076.0,0.2102]
[1693537827701,3.36968015,26077.0,26076.0,0.2102]
[1693537827903,3.36980015,26077.0,26076.0,0.2102]
[1693537828238,3.36986015,26077.0,26076.0,0.2102]
[1693537828421,3.37022015,26077.0,26076.0,0.2102]
[1693537828621,3.36938015,26077.0,26076.0,0.2102]
[1693537828825,3.36848015,26077.0,26076.0,0.2102]
[1693537829217,3.36854015,26077.0,26076.0,0.2102]
[1693537829419,3.36836015,26077.0,26076.0,0.2102]
[1693537829669,3.36992015,26077.0,26076.0,0.2102]
[1693537829871,3.05977337,26077.0,26076.0,0.2102]
[1693537830172,3.3684806,26077.0,26076.0,0.2102]
[1693537830367,3.3680006,26077.0,26076.0,0.2102]
[1693537830588,3.3677606,26077.0,26076.0,0.2102]
[1693537830792,3.3678206,26077.0,26076.0,0.2102]
[1693537831021,3.05707337,26077.0,26076.0,0.2102]
[1693537831227,3.05665337,26077.0,26076.0,0.2102]
[1693537831435,3.05671337,26077.0,26076.0,0.2102]
[1693537831647,3.06007337,26077.0,26076.0,0.2102]
[1693537831846,3.05719337,26077.0,26076.0,0.2102]
[1693537832050,3.05707337,26077.0,26076.0,0.2102]
[1693537832274,3.06019337,26077.0,26076.0,0.2102]
[1693537832476,3.05767337,26077.0,26076.0,0.2102]
[1693537832701,3.05875337,26077.0,26076.0,0.2102]
[1693537832876,3.05839337,26077.0,26076.0,0.2102]
[1693537833079,3.05851337,26077.0,26076.0,0.2102]
[1693537833326,3.06439337,26077.0,26076.0,0.2102]
[1693537833528,3.05845337,26077.0,26076.0,0.2102]
[1693537833924,3.05851337,26077.0,26076.0,0.2102]
[1693537834219,3.05881337,26077.0,26076.0,0.2102]
[1693537834373,3.05851337,26077.0,26076.0,0.2102]
[1693537834581,3.05827337,26077.0,26076.0,0.2102]
[1693537834799,3.05863337,26077.0,26076.0,0.2102]
[1693537834981,3.05833337,26077.0,26076.0,0.2102]
[1693537835408,3.05746321,26077.0,26076.0,0.2102]
[1693537835606,3.05752321,26077.0,26076.0,0.2102]
[1693537836241,3.05728321,26077.0,26076.0,0.2102]
[1693537836444,3.06274321,26077.0,26076.0,0.2102]
[1693537836646,3.05854321,26077.0,26076.0,0.2102]
[1693537836867,3.05866321,26077.0,26076.0,0.2102]
[1693537837008,3.05872321,26077.0,26076.0,0.2102]
[1693537837410,3.05956321,26077.0,26076.0,0.2102]
[1693537837614,3.05704321,26077.0,26076.0,0.2102]
[1693537838346,3.05752321,26077.0,26076.0,0.2102]
[1693537838679,3.05728321,26077.0,26076.0,0.2102]
[1693537838840,3.05734321,26077.0,26076.0,0.2102]
[1693537839227,3.06178321,26077.0,26076.0,0.2102]
[1693537839411,3.05710321,26077.0,26076.0,0.2102]
[1693537839604,3.05662321,26077.0,26076.0,0.2102]
[1693537839815,3.05668321,26077.0,26076.0,0.2102]
[1693537840086,3.05686321,26077.0,26076.0,0.2102]
[1693537840287,3.05680321,26077.0,26076.0,0.2102]
[1693537840437,3.05698321,26077.0,26076.0,0.2102]
[1693537841206,3.05722321,26077.0,26076.0,0.2102]
[1693537841408,3.05632321,26077.0,26076.0,0.2102]
[1693537841643,3.05620321,26077.0,26076.0,0.2102]
[1693537841923,3.05590321,26077.0,26076.0,0.2102]
[1693537842162,3.05464321,26077.0,26076.0,0.2102]
[1693537842289,3.05416321,26077.0,26076.0,0.2102]
[1693537842516,3.05452321,26077.0,26076.0,0.2102]
[1693537842720,3.05434321,26077.0,26076.0,0.2102]
[1693537842921,3.05584321,26077.0,26076.0,0.2102]
[1693537843124,3.05716321,26077.0,26076.0,0.2102]
[1693537843322,3.05458321,26077.0,26076.0,0.2102]
[1693537843894,3.05452321,26077.0,26076.0,0.2102]
[1693537844067,3.05602321,26077.0,26076.0,0.2102]
[1693537844267,3.05530321,26077.0,26076.0,0.2102]
[1693537844472,3.05566321,26077.0,26076.0,0.2102]
[1693537844679,3.05554321,26077.0,26076.0,0.2102]
[1693537844919,3.05560321,26077.0,26076.0,0.2102]
[1693537845241,3.05554321,26077.0,26076.0,0.2102]
[1693537845440,3.05566321,26077.0,26076.0,0.2102]
[1693537845570,3.05530321,26077.0,26076.0,0.2102]
[1693537845778,3.05356321,26077.0,26076.0,0.2102]
[1693537845983,3.05368321,26077.0,26076.0,0.2102]
[1693537846162,3.05380321,26077.0,26076.0,0.2102]
[1693537846404,3.05410321,26077.0,26076.0,0.2102]
[1693537846578,3.05398321,26077.0,26076.0,0.2102]
[1693537846801,3.05375977,26077.0,26076.0,0.2102]
[1693537846998,3.05429977,26077.0,26076.0,0.2102]
[1693537847209,3.05441977,26077.0,26076.0,0.2102]
[1693537847406,3.05435977,26077.0,26076.0,0.2102]
[1693537847614,3.05807977,26077.0,26076.0,0.2102]
[1693537847814,3.05435977,26077.0,26076.0,0.2102]
[1693537848012,3.05429977,26077.0,26076.0,0.2102]
[1693537848256,3.05453977,26077.0,26076.0,0.2102]
[1693537848456,3.05423977,26077.0,26076.0,0.2102]
[1693537848697,3.05405977,26077.0,26076.0,0.2102]
[1693537848981,3.05375977,26077.0,26076.0,0.2102]
[1693537849402,3.05405977,26077.0,26076.0,0.2102]
[1693537849556,3.05393977,26077.0,26076.0,0.2102]
[1693537849788,3.05399977,26077.0,26076.0,0.2102]
[1693537849964,3.05405977,26077.0,26076.0,0.2102]
[1693537850164,3.05417977,26077.0,26076.0,0.2102]
[1693537850411,3.05411977,26077.0,26076.0,0.2102]
[1693537850648,3.05531977,26077.0,26076.0,0.2102]
[1693537850760,3.05525977,26077.0,26076.0,0.2102]
[1693537850961,3.05531977,26077.0,26076.0,0.2102]
[1693537851188,3.05555977,26077.0,26076.0,0.2102]
[1693537851387,3.05561977,26077.0,26076.0,0.2102]
[1693537851797,3.05567977,26077.0,26076.0,0.2102]
[1693537852276,3.05813977,26077.0,26076.0,0.2102]
[1693537852471,3.05585977,26077.0,26076.0,0.2102]
[1693537852683,3.05579977,26077.0,26076.0,0.2102]
[1693537852947,3.05591977,26077.0,26076.0,0.2102]
[1693537853355,3.05597977,26077.0,26076.0,0.2102]
[1693537853745,3.05591977,26077.0,26076.0,0.2102]
[1693537854197,3.05663977,26077.0,26076.0,0.2102]
[1693537854401,3.05789977,26077.0,26076.0,0.2102]
[1693537854607,3.05909977,26077.0,26076.0,0.2102]
[1693537854854,3.05921977,26077.0,26076.0,0.2102]
[1693537855058,3.06053977,26077.0,26076.0,0.2102]
[1693537855231,3.06065977,26077.0,26076.0,0.2102]
[1693537855429,3.06029977,26077.0,26076.0,0.2102]
[1693537855642,3.06011977,26077.0,26076.0,0.2102]
[1693537855837,3.05993977,26077.0,26076.0,0.2102]
[1693537856038,2.86036514,26077.0,26076.0,0.2102]
[1693537856248,3.08200355,26077.0,26076.0,0.2102]
[1693537856449,3.08164355,26077.0,26076.0,0.2102]
[1693537856670,3.08146355,26077.0,26076.0,0.2102]
[1693537856820,3.06184689,26077.0,26076.0,0.2102]
[1693537857019,3.06154689,26077.0,26076.0,0.2102]
[1693537857285,3.06046689,26077.0,26076.0,0.2102]
[1693537857653,3.06094689,26077.0,26076.0,0.2102]
[1693537857853,2.84524848,26077.0,26076.0,0.2102]
[1693537858053,2.84776848,26077.0,26076.0,0.2102]
[1693537858261,2.84704848,26077.0,26076.0,0.2102]
[1693537858435,2.84560848,26077.0,26076.0,0.2102]
[1693537858838,3.12408402,26077.0,26076.0,0.2102]
[1693537859066,3.12396402,26077.0,26076.0,0.2102]
[1693537859238,2.84488848,26077.0,26076.0,0.2102]
[1693537859438,2.84746848,26077.0,26076.0,0.2102]
[1693537859755,3.09149054,26077.0,26076.0,0.2102]
[1693537859959,3.09167054,26077.0,26076.0,0.2102]
[1693537860261,2.84680848,26077.0,26076.0,0.2102]
[1693537860489,3.06191637,26077.0,26076.0,0.2102]
[1693537860902,3.06107637,26077.0,26076.0,0.2102]
[1693537861293,3.06101637,26077.0,26076.0,0.2102]
[1693537861493,3.06065637,26077.0,26076.0,0.2102]
[1693537861706,3.04047637,26077.0,26076.0,0.2102]
[1693537861911,3.04029637,26077.0,26076.0,0.2102]
[1693537862111,3.04047637,26077.0,26076.0,0.2102]
[1693537862458,3.04011637,26077.0,26076.0,0.2102]
[1693537862639,3.04035637,26077.0,26076.0,0.2102]
[1693537863226,3.04935637,26077.0,26076.0,0.2102]
[1693537863420,3.04161637,26077.0,26076.0,0.2102]
[1693537863643,3.04089637,26077.0,26076.0,0.2102]
[1693537863837,3.04101637,26077.0,26076.0,0.2102]
[1693537864037,3.04083637,26077.0,26076.0,0.2102]
[1693537864220,3.04101637,26077.0,26076.0,0.2102]
[1693537864819,3.04095637,26077.0,26076.0,0.2102]
[1693537865719,3.04131637,26077.0,26076.0,0.2102]
[1693537865926,3.04143637,26077.0,26076.0,0.2102]
[1693537866145,3.04125637,26077.0,26076.0,0.2102]
[1693537866586,3.04149637,26077.0,26076.0,0.2102]
[1693537866797,3.04161637,26077.0,26076.0,0.2102]
[1693537867012,3.04155637,26077.0,26076.0,0.2102]
[1693537867223,3.04161637,26077.0,26076.0,0.2102]
[1693537867473,3.04239637,26077.0,26076.0,0.2102]
[1693537867681,3.04221637,26077.0,26076.0,0.2102]
[1693537867882,3.04233637,26077.0,26076.0,0.2102]
[1693537868111,3.04275637,26077.0,26076.0,0.2102]
[1693537868323,3.04293637,26077.0,26076.0,0.2102]
[1693537868501,3.04137637,26077.0,26076.0,0.2102]
[1693537868729,3.04131637,26077.0,26076.0,0.2102]
[1693537868918,3.04143637,26077.0,26076.0,0.2102]
[1693537869121,3.04161637,26077.0,26076.0,0.2102]
[1693537869343,3.04251637,26077.0,26076.0,0.2102]
[1693537869709,3.04173637,26077.0,26076.0,0.2102]
[1693537870066,3.04191637,26077.0,26076.0,0.2102]
[1693537870309,3.04233637,26077.0,26076.0,0.2102]
[1693537870541,3.04227637,26077.0,26076.0,0.2102]
[1693537870751,3.04347637,26077.0,26076.0,0.2102]
[1693537870902,3.04341637,26077.0,26076.0,0.2102]
[1693537871104,3.04359637,26077.0,26076.0,0.2102]
[1693537871307,3.04353637,26077.0,26076.0,0.2102]
[1693537871619,3.04329637,26077.0,26076.0,0.2102]
[1693537871862,3.04323637,26077.0,26076.0,0.2102]
[1693537872055,3.04461637,26077.0,26076.0,0.2102]
[1693537872218,3.04275637,26077.0,26076.0,0.2102]
[1693537872422,3.04377637,26077.0,26076.0,0.2102]
[1693537872622,3.04317637,26077.0,26076.0,0.2102]
[1693537872799,3.04419637,26077.0,26076.0,0.2102]
[1693537872997,3.04401637,26077.0,26076.0,0.2102]
[1693537873207,3.04407637,26077.0,26076.0,0.2102]
[1693537873405,3.04485637,26077.0,26076.0,0.2102]
[1693537873742,3.04455637,26077.0,26076.0,0.2102]
[1693537873903,3.04395637,26077.0,26076.0,0.2102]
[1693537874104,3.04467637,26077.0,26076.0,0.2102]
[1693537874329,3.04389637,26077.0,26076.0,0.2102]
[1693537874750,3.04725637,26077.0,26076.0,0.2102]
[1693537874888,3.04449637,26077.0,26076.0,0.2102]
[1693537875119,3.04341637,26077.0,26076.0,0.2102]
[1693537875313,3.04323637,26077.0,26076.0,0.2102]
[1693537875713,3.04317637,26077.0,26076.0,0.2102]
[1693537875938,3.04353637,26077.0,26076.0,0.2102]
[1693537876139,3.04521637,26077.0,26076.0,0.2102]
[1693537876384,3.04641637,26077.0,26076.0,0.2102]
[1693537876579,3.04401637,26077.0,26076.0,0.2102]
[1693537876807,3.04497637,26077.0,26076.0,0.2102]
[1693537877088,3.04347637,26077.0,26076.0,0.2102]
[1693537877713,3.04353637,26077.0,26076.0,0.2102]
[1693537877913,3.04215637,26077.0,26076.0,0.2102]
[1693537878109,3.04221637,26077.0,26076.0,0.2102]
[1693537878515,3.04401637,26077.0,26076.0,0.2102]
[1693537878715,3.04371637,26077.0,26076.0,0.2102]
[1693537879321,3.04383637,26077.0,26076.0,0.2102]
[1693537879528,3.04371637,26077.0,26076.0,0.2102]
[1693537879730,3.04341637,26077.0,26076.0,0.2102]
[1693537879902,3.04419637,26077.0,26076.0,0.2102]
[1693537880142,3.04449637,26077.0,26076.0,0.2102]
[1693537880340,3.04485637,26077.0,26076.0,0.2102]
[1693537880550,3.04347637,26077.0,26076.0,0.2102]
[1693537880963,3.04401637,26077.0,26076.0,0.2102]
[1693537881228,3.04347637,26077.0,26076.0,0.2102]
[1693537881647,3.04335637,26077.0,26076.0,0.2102]
[1693537881851,3.04341637,26077.0,26076.0,0.2102]
[1693537881983,3.04431637,26077.0,26076.0,0.2102]
[1693537882335,3.04371637,26077.0,26076.0,0.2102]
[1693537882541,3.04479637,26077.0,26076.0,0.2102]
[1693537882833,3.04371637,26077.0,26076.0,0.2102]
[1693537883171,3.04365637,26077.0,26076.0,0.2102]
[1693537883377,3.04359637,26077.0,26076.0,0.2102]
[1693537883601,3.04395637,26077.0,26076.0,0.2102]
[1693537884039,3.04335637,26077.0,26076.0,0.2102]
[1693537884599,3.04377637,26077.0,26076.0,0.2102]
[1693537884799,3.04335637,26077.0,26076.0,0.2102]
[1693537884934,3.04341637,26077.0,26076.0,0.2102]
[1693537885137,3.04353637,26077.0,26076.0,0.2102]
[1693537885538,3.04389637,26077.0,26076.0,0.2102]
[1693537885732,3.04305637,26077.0,26076.0,0.2102]
[1693537885939,3.04341637,26077.0,26076.0,0.2102]
[1693537886144,3.04293637,26077.0,26076.0,0.2102]
[1693537886328,3.04311637,26077.0,26076.0,0.2102]
[1693537886525,3.04293637,26077.0,26076.0,0.2102]
[1693537886747,3.04281637,26077.0,26076.0,0.2102]
[1693537887085,3.04287637,26077.0,26076.0,0.2102]
[1693537887315,3.04911637,26077.0,26076.0,0.2102]
[1693537887536,3.04329637,26077.0,26076.0,0.2102]
[1693537887938,3.04839637,26077.0,26076.0,0.2102]
[1693537888113,3.04257637,26077.0,26076.0,0.2102]
[1693537888340,3.04269637,26077.0,26076.0,0.2102]
[1693537888522,3.04659637,26077.0,26076.0,0.2102]
[1693537888725,3.05079637,26077.0,26076.0,0.2102]
[1693537888876,3.04473637,26077.0,26076.0,0.2102]
[1693537889217,3.04467637,26077.0,26076.0,0.2102]
[1693537889434,3.04389637,26077.0,26076.0,0.2102]
[1693537889725,3.04371637,26077.0,26076.0,0.2102]
[1693537890185,3.04443637,26077.0,26076.0,0.2102]
[1693537890360,3.04377637,26077.0,26076.0,0.2102]
[1693537890591,3.04365637,26077.0,26076.0,0.2102]
[1693537890777,3.04371637,26077.0,26076.0,0.2102]
[1693537890974,3.04377637,26077.0,26076.0,0.2102]
[1693537891171,3.04383637,26077.0,26076.0,0.2102]
[1693537891378,3.04665637,26077.0,26076.0,0.2102]
[1693537891616,3.04575637,26077.0,26076.0,0.2102]
[1693537891820,3.04671637,26077.0,26076.0,0.2102]
[1693537892226,3.04893637,26077.0,26076.0,0.2102]
[1693537892426,3.05001637,26077.0,26076.0,0.2102]
[1693537892632,3.04893637,26077.0,26076.0,0.2102]
[1693537892806,3.04887637,26077.0,26076.0,0.2102]
[1693537893011,2.83226848,26077.0,26076.0,0.2102]
[1693537893146,2.83358848,26077.0,26076.0,0.2102]
[1693537893350,3.0466048,26077.0,26076.0,0.2102]
[1693537893548,3.0460648,26077.0,26076.0,0.2102]
[1693537893753,3.0460048,26077.0,26076.0,0.2102]
[1693537894072,3.0458848,26077.0,26076.0,0.2102]
[1693537894396,3.0463048,26077.0,26076.0,0.2102]
[1693537894598,3.0530248,26077.0,26076.0,0.2102]
[1693537894805,3.0536248,26077.0,26076.0,0.2102]
[1693537895010,3.0467848,26077.0,26076.0,0.2102]
[1693537895210,3.0550048,26077.0,26076.0,0.2102]
[1693537895418,3.0500248,26077.0,26076.0,0.2102]
[1693537895616,3.0501448,26077.0,26076.0,0.2102]
[1693537895822,3.0497848,26077.0,26076.0,0.2102]
[1693537896120,3.0470248,26077.0,26076.0,0.2102]
[1693537896300,2.83454848,26077.0,26076.0,0.2102]
[1693537896496,2.83370848,26077.0,26076.0,0.2102]
[1693537896695,2.83430848,26077.0,26076.0,0.2102]
[1693537896899,3.0305985,26077.0,26076.0,0.2102]
[1693537897100,3.0299385,26077.0,26076.0,0.2102]
[1693537897622,3.0298785,26077.0,26076.0,0.2102]
[1693537898050,3.0295785,26077.0,26076.0,0.2102]
[1693537898353,3.0311985,26077.0,26076.0,0.2102]
[1693537898656,3.0332385,26077.0,26076.0,0.2102]
[1693537898873,2.83652848,26077.0,26076.0,0.2102]
[1693537899076,2.83640848,26077.0,26076.0,0.2102]
[1693537899236,3.08706921,26077.0,26076.0,0.2102]
[1693537899583,3.08262921,26077.0,26076.0,0.2102]
[1693537899788,3.08088921,26077.0,26076.0,0.2102]
[1693537899998,2.83412848,26077.0,26076.0,0.2102]
[1693537900287,2.83424848,26077.0,26076.0,0.2102]
[1693537900494,3.10656352,26077.0,26076.0,0.2102]
[1693537900695,3.10662352,26077.0,26076.0,0.2102]
[1693537901099,3.11166352,26077.0,26076.0,0.2102]
[1693537901274,3.10674352,26077.0,26076.0,0.2102]
[1693537901483,3.11118352,26077.0,26076.0,0.2102]
[1693537901707,3.10500352,26077.0,26076.0,0.2102]
[1693537901851,3.10506352,26077.0,26076.0,0.2102]
[1693537902049,3.10908352,26077.0,26076.0,0.2102]
[1693537902275,3.11016352,26077.0,26076.0,0.2102]
[1693537902479,3.10686352,26077.0,26076.0,0.2102]
[1693537902644,3.10548352,26077.0,26076.0,0.2102]
[1693537902850,3.10536352,26077.0,26076.0,0.2102]
[1693537903054,3.10638352,26077.0,26076.0,0.2102]
[1693537903506,3.10680352,26077.0,26076.0,0.2102]
[1693537903720,3.10710352,26077.0,26076.0,0.2102]
[1693537903898,3.10656352,26077.0,26076.0,0.2102]
[1693537904097,3.10668352,26077.0,26076.0,0.2102]
[1693537904296,3.10662352,26077.0,26076.0,0.2102]
[1693537904507,3.10638352,26077.0,26076.0,0.2102]
[1693537904725,3.10656352,26077.0,26076.0,0.2102]
[1693537904882,3.10638352,26077.0,26076.0,0.2102]
[1693537905291,3.10722352,26077.0,26076.0,0.2102]
[1693537905505,3.10782352,26077.0,26076.0,0.2102]
[1693537905702,3.10548352,26077.0,26076.0,0.2102]
[1693537905906,3.10404352,26077.0,26076.0,0.2102]
[1693537906109,3.10446352,26077.0,26076.0,0.2102]
[1693537906309,3.10368352,26077.0,26076.0,0.2102]
[1693537906531,3.10392352,26077.0,26076.0,0.2102]
[1693537906872,3.10416352,26077.0,26076.0,0.2102]
[1693537907082,3.10386352,26077.0,26076.0,0.2102]
[1693537907455,3.10428352,26077.0,26076.0,0.2102]
[1693537907655,3.10374352,26077.0,26076.0,0.2102]
[1693537907849,3.10368352,26077.0,26076.0,0.2102]
[1693537908053,3.10392352,26077.0,26076.0,0.2102]
[1693537908259,3.10464352,26077.0,26076.0,0.2102]
[1693537908460,3.10470352,26077.0,26076.0,0.2102]
[1693537908660,3.10428352,26077.0,26076.0,0.2102]
[1693537908864,3.10452352,26077.0,26076.0,0.2102]
[1693537909205,3.10464352,26077.0,26076.0,0.2102]
[1693537909361,3.10812352,26077.0,26076.0,0.2102]
[1693537909688,3.10524352,26077.0,26076.0,0.2102]
[1693537909901,3.10596352,26077.0,26076.0,0.2102]
[1693537910130,3.10836352,26077.0,26076.0,0.2102]
[1693537910300,3.10524352,26077.0,26076.0,0.2102]
[1693537910501,3.10632352,26077.0,26076.0,0.2102]
[1693537910814,3.10572352,26077.0,26076.0,0.2102]
[1693537911024,3.10608352,26077.0,26076.0,0.2102]
[1693537911227,3.22595526,26077.0,26076.0,0.2102]
[1693537911432,3.24365526,26077.0,26076.0,0.2102]
[1693537911652,3.24293526,26077.0,26076.0,0.2102]
[1693537911850,3.24389526,26077.0,26076.0,0.2102]
[1693537912051,3.24959526,26077.0,26076.0,0.2102]
[1693537912257,3.23729526,26077.0,26076.0,0.2102]
[1693537912459,3.23705526,26077.0,26076.0,0.2102]
[1693537912757,3.23675526,26077.0,26076.0,0.2102]
[1693537912965,3.23651526,26077.0,26076.0,0.2102]
[1693537913124,3.23315526,26077.0,26076.0,0.2102]
[1693537913326,3.23321526,26077.0,26076.0,0.2102]
[1693537913526,3.23291526,26077.0,26076.0,0.2102]
[1693537913728,3.23243526,26077.0,26076.0,0.2102]
[1693537913904,3.23273526,26077.0,26076.0,0.2102]
[1693537914306,3.23195526,26077.0,26076.0,0.2102]
[1693537914530,3.23207526,26077.0,26076.0,0.2102]
[1693537914733,3.53543074,26077.0,26076.0,0.2102]
[1693537915097,3.53525074,26077.0,26076.0,0.2102]
[1693537915401,3.23243526,26077.0,26076.0,0.2102]
[1693537915606,3.23819526,26077.0,26076.0,0.2102]
[1693537915907,3.23237526,26077.0,26076.0,0.2102]
[1693537916118,3.23843526,26077.0,26076.0,0.2102]
[1693537916272,3.23225526,26077.0,26076.0,0.2102]
[1693537916468,3.23195526,26077.0,26076.0,0.2102]
[1693537916694,3.23207526,26077.0,26076.0,0.2102]
[1693537916875,3.23159526,26077.0,26076.0,0.2102]
[1693537917075,3.23189526,26077.0,26076.0,0.2102]
[1693537917318,3.23165526,26077.0,26076.0,0.2102]
[1693537917506,3.23129526,26077.0,26076.0,0.2102]
[1693537917876,3.23135526,26077.0,26076.0,0.2102]
[1693537918086,3.23351526,26077.0,26076.0,0.2102]
[1693537918287,3.23315526,26077.0,26076.0,0.2102]
[1693537918516,3.43616239,26077.0,26076.0,0.2102]
[1693537918719,3.43652239,26077.0,26076.0,0.2102]
[1693537918915,3.23033526,26077.0,26076.0,0.2102]
[1693537919138,3.23027526,26077.0,26076.0,0.2102]
[1693537919451,3.42632183,26077.0,26076.0,0.2102]
[1693537919595,3.50127916,26077.0,26076.0,0.2102]
[1693537919803,3.22952795,26077.0,26076.0,0.2102]
[1693537920017,3.22988795,26077.0,26076.0,0.2102]
[1693537920218,3.23018795,26077.0,26076.0,0.2102]
[1693537920452,3.23006795,26077.0,26076.0,0.2102]
[1693537920656,3.23024795,26077.0,26076.0,0.2102]
[1693537920858,3.22994795,26077.0,26076.0,0.2102]
[1693537921026,3.23072795,26077.0,26076.0,0.2102]
[1693537921221,3.23348795,26077.0,26076.0,0.2102]
[1693537921492,3.22970795,26077.0,26076.0,0.2102]
[1693537921818,3.23492795,26077.0,26076.0,0.2102]
[1693537922024,3.22910795,26077.0,26076.0,0.2102]
[1693537922210,3.22898795,26077.0,26076.0,0.2102]
[1693537922413,3.23096795,26077.0,26076.0,0.2102]
[1693537922622,3.23108795,26077.0,26076.0,0.2102]
[1693537922821,3.23102795,26077.0,26076.0,0.2102]
[1693537923047,3.23132795,26077.0,26076.0,0.2102]
[1693537923253,3.23186795,26077.0,26076.0,0.2102]
[1693537923452,3.23096795,26077.0,26076.0,0.2102]
[1693537923731,3.22958795,26077.0,26076.0,0.2102]
[1693537923870,3.22952795,26077.0,26076.0,0.2102]
[1693537924312,3.22940795,26077.0,26076.0,0.2102]
[1693537924516,3.61776212,26077.0,26076.0,0.2102]
[1693537924716,3.61734212,26077.0,26076.0,0.2102]
[1693537924943,3.61788212,26077.0,26076.0,0.2102]
[1693537925142,3.61800212,26077.0,26076.0,0.2102]
[1693537925569,3.61758212,26077.0,26076.0,0.2102]
[1693537925764,3.61746212,26077.0,26076.0,0.2102]
[1693537925970,3.23138795,26077.0,26076.0,0.2102]
[1693537926170,3.23132795,26077.0,26076.0,0.2102]
[1693537926434,3.23126795,26077.0,26076.0,0.2102]
[1693537926836,3.23114795,26077.0,26076.0,0.2102]
[1693537927013,3.23120795,26077.0,26076.0,0.2102]
[1693537927212,3.63084212,26077.0,26076.0,0.2102]
[1693537927715,3.63354212,26077.0,26076.0,0.2102]
[1693537927876,3.63366212,26077.0,26076.0,0.2102]
[1693537928080,3.62838212,26077.0,26076.0,0.2102]
[1693537928277,3.62808212,26077.0,26076.0,0.2102]
[1693537928472,3.62814212,26077.0,26076.0,0.2102]
[1693537928679,3.62808212,26077.0,26076.0,0.2102]
[1693537928900,3.62790212,26077.0,26076.0,0.2102]
[1693537929067,3.62946212,26077.0,26076.0,0.2102]
[1693537929294,3.63216212,26077.0,26076.0,0.2102]
[1693537929493,3.63090212,26077.0,26076.0,0.2102]
[1693537929880,3.63066212,26077.0,26076.0,0.2102]
[1693537930011,3.63030212,26077.0,26076.0,0.2102]
[1693537930191,3.63090212,26077.0,26076.0,0.2102]
[1693537930394,3.63078212,26077.0,26076.0,0.2102]
[1693537930596,3.63048212,26077.0,26076.0,0.2102]
[1693537930792,3.62994212,26077.0,26076.0,0.2102]
[1693537931057,3.62988212,26077.0,26076.0,0.2102]
[1693537931261,3.62514212,26077.0,26076.0,0.2102]
[1693537931469,3.62490212,26077.0,26076.0,0.2102]
[1693537931605,3.84006518,26077.0,26076.0,0.2102]
[1693537931815,3.62262212,26077.0,26076.0,0.2102]
[1693537932061,3.62280212,26077.0,26076.0,0.2102]
[1693537932789,3.8461672,26077.0,26076.0,0.2102]
[1693537932990,3.8460472,26077.0,26076.0,0.2102]
[1693537933128,3.8452672,26077.0,26076.0,0.2102]
[1693537933332,3.8454472,26077.0,26076.0,0.2102]
[1693537933536,3.8447872,26077.0,26076.0,0.2102]
[1693537933734,3.8452072,26077.0,26076.0,0.2102]
[1693537933934,3.8450872,26077.0,26076.0,0.2102]
[1693537934360,3.8452672,26077.0,26076.0,0.2102]
[1693537934561,3.8453272,26077.0,26076.0,0.2102]
[1693537934762,3.62250212,26077.0,26076.0,0.2102]
[1693537934963,3.62262212,26077.0,26076.0,0.2102]
[1693537935170,3.62274212,26077.0,26076.0,0.2102]
[1693537935390,3.62418212,26077.0,26076.0,0.2102]
[1693537935643,3.62424212,26077.0,26076.0,0.2102]
[1693537935797,3.62418212,26077.0,26076.0,0.2102]
[1693537936261,3.62412212,26077.0,26076.0,0.2102]
[1693537936464,3.62406212,26077.0,26076.0,0.2102]
[1693537936664,3.62448212,26077.0,26076.0,0.2102]
[1693537936944,3.62472212,26077.0,26076.0,0.2102]
[1693537937154,3.62490212,26077.0,26076.0,0.2102]
[1693537937326,3.62526212,26077.0,26076.0,0.2102]
[1693537937526,3.62550212,26077.0,26076.0,0.2102]
[1693537937723,3.62544212,26077.0,26076.0,0.2102]
[1693537937911,3.62568212,26077.0,26076.0,0.2102]
[1693537938118,3.62592212,26077.0,26076.0,0.2102]
[1693537938337,3.62580212,26077.0,26076.0,0.2099682]
[1693537938483,3.62550212,26077.0,26076.0,0.2099682]
[1693537938687,3.62532212,26077.0,26076.0,0.2099682]
[1693537938889,3.62526212,26077.0,26076.0,0.2099682]
[1693537939148,3.62502212,26077.0,26076.0,0.2099682]
[1693537939345,3.62490212,26077.0,26076.0,0.2099682]
[1693537939555,3.23672795,26077.0,26076.0,0.2099682]
[1693537939730,3.23060795,26077.0,26076.0,0.2099682]
[1693537939957,3.22994795,26077.0,26076.0,0.2099682]
[1693537940136,3.23000795,26077.0,26076.0,0.2099682]
[1693537940339,3.23024795,26077.0,26076.0,0.2099682]
[1693537940518,3.23012795,26077.0,26076.0,0.2099682]
[1693537940723,3.23006795,26077.0,26076.0,0.2099682]
[1693537941131,3.23012795,26077.0,26076.0,0.2099682]
[1693537941470,3.23030795,26077.0,26076.0,0.2099682]
[1693537941628,3.62040212,26077.0,26076.0,0.2099682]
[1693537941829,3.61800212,26077.0,26076.0,0.2099682]
[1693537942074,3.61818212,26077.0,26076.0,0.2099682]
[1693537942229,3.61824212,26077.0,26076.0,0.2099682]
[1693537942430,3.61818212,26077.0,26076.0,0.2099682]